bitfinex/quotes_SOLUSD_20250722
["timestamp","ask_amount","ask_price","bid_price","bid_amount"]
[1753146088940,30.06,197.84,197.83,13.88665566]
[1753146089964,0.06,197.84,197.83,50.38665566]
[1753146090133,0.06,197.84,197.83,55.44150072]
[1753146091038,1e-08,197.84,197.83,55.44150072]
[1753146092449,1e-08,197.84,197.83,5.73484506]
[1753146092645,1e-08,197.84,197.83,55.42150072]
[1753146093053,1e-08,197.84,197.83,31.73484506]
[1753146093260,1e-08,197.84,197.83,81.42150072]
[1753146094355,1e-08,197.84,197.83,55.42150072]
[1753146094576,1e-08,197.85,197.83,55.42150072]
[1753146094778,1e-08,197.85,197.84,13.88665566]
[1753146095781,1e-08,197.86,197.85,39.20665566]
[1753146098886,1e-08,197.86,197.82,0.72]
[1753146099055,16.78468398,197.86,197.82,0.72]
[1753146099373,16.78468398,197.86,197.81,49.66665566]
[1753146099583,16.78468398,197.86,197.81,50.38665566]
[1753146099766,16.78468398,197.86,197.82,0.72]
[1753146099959,13.20665567,197.86,197.81,49.66665566]
[1753146100161,13.20665566,197.85,197.81,36.46]
[1753146100357,16.78468397,197.85,197.82,5.05510059]
[1753146100659,16.78468398,197.86,197.82,5.05510059]
[1753146101082,16.78468398,197.86,197.82,5.77510059]
[1753146101565,1e-08,197.86,197.82,18.98175625]
[1753146101877,1e-08,197.86,197.82,5.05510059]
[1753146102052,1e-08,197.86,197.81,36.46]
[1753146102053,13.20665566,197.85,197.81,36.46]
[1753146102257,16.78468397,197.83,197.79,36.44]
[1753146102484,16.78468397,197.8,197.78,0.03]
[1753146102690,30.59133963,197.79,197.78,0.03]
[1753146103064,67.07133963,197.79,197.78,0.03]
[1753146103266,42.78468397,197.75,197.74,0.03]
[1753146103488,55.99133963,197.75,197.74,0.03]
[1753146103683,56.59133963,197.75,197.74,0.03]
[1753146104068,62.22719077,197.75,197.74,0.03]
[1753146104274,62.22719077,197.75,197.58,7.2232]
[1753146104464,62.22719077,197.75,197.58,0.2]
[1753146104465,35.04925273,197.71,197.58,0.2]
[1753146104685,71.52925273,197.71,197.58,5.26110566]
[1753146104883,42.78468397,197.67,197.58,5.26110566]
[1753146105194,16.78468397,197.61,197.58,5.26110566]
[1753146105565,16.78468397,197.61,197.58,0.2]
[1753146105796,16.78468397,197.59,197.58,0.2]
[1753146106169,13.20665566,197.61,197.58,0.2]
[1753146106170,16.78468397,197.6,197.58,5.26114756]
[1753146106597,16.78468397,197.63,197.58,0.2]
[1753146106782,37.05,197.65,197.58,0.2]
[1753146106783,16.78468397,197.61,197.58,5.98123011]
[1753146107399,17.35468397,197.65,197.58,0.2]
[1753146107580,13.20665566,197.61,197.58,0.2]
[1753146107996,16.78468397,197.61,197.58,5.2612396]
[1753146108188,29.99133963,197.61,197.58,5.2612396]
[1753146108505,29.99133963,197.61,197.58,0.2]
[1753146108806,16.78468397,197.59,197.58,0.2]
[1753146108993,16.78468397,197.68,197.58,45.18789667]
[1753146109191,29.99133963,197.65,197.58,31.98124101]
[1753146109399,13.20665566,197.63,197.58,45.18789667]
[1753146109594,13.20665566,197.63,197.58,31.98124101]
[1753146109797,0.57,197.67,197.59,0.72]
[1753146110105,16.78468397,197.63,197.6,13.20665566]
[1753146110428,16.78468397,197.66,197.61,13.92665566]
[1753146110707,16.78468397,197.67,197.62,5.06021657]
[1753146111096,13.20665566,197.67,197.62,18.26687223]
[1753146111406,13.20665566,197.67,197.62,18.98687223]
[1753146111594,16.78468397,197.7,197.62,18.98687223]
[1753146111595,16.78468397,197.7,197.66,13.20665566]
[1753146111801,16.78468397,197.7,197.66,13.92665566]
[1753146111995,13.20665566,197.67,197.62,5.06021657]
[1753146112187,0.57,197.69,197.62,5.78021657]
[1753146112400,13.20665566,197.67,197.62,18.98687223]
[1753146112978,16.78468397,197.67,197.62,18.98687223]
[1753146113183,29.99133963,197.67,197.62,5.78021657]
[1753146113586,16.78468397,197.65,197.62,5.06021657]
[1753146114808,16.78468397,197.65,197.61,5.06047264]
[1753146115205,16.78468397,197.65,197.61,5.78047264]
[1753146115505,16.78468397,197.65,197.59,12.65235063]
[1753146115506,13.20665566,197.65,197.59,5.06073267]
[1753146115692,36.5,197.71,197.59,5.06073267]
[1753146115693,16.78468397,197.63,197.59,5.06073267]
[1753146115892,13.20665566,197.66,197.61,13.20665566]
[1753146116093,16.78468397,197.66,197.62,0.72]
[1753146116285,16.78468397,197.66,197.63,0.72]
[1753146116487,13.20665566,197.68,197.62,13.20665566]
[1753146116708,16.78468397,197.64,197.61,5.78025181]
[1753146117024,29.99133963,197.62,197.58,5.26102037]
[1753146117187,8.84926569,197.6,197.58,0.2]
[1753146117386,25.63394966,197.59,197.58,0.2]
[1753146117617,26.20394966,197.59,197.58,0.2]
[1753146118694,31.26493452,197.59,197.58,0.2]
[1753146119316,35.60651508,197.59,197.58,0.2]
[1753146119826,17.35468397,197.59,197.58,0.2]
[1753146119987,29.97553022,197.59,197.58,0.2]
[1753146120187,1.6512,197.64,197.58,5.26124101]
[1753146120413,13.19084625,197.67,197.59,0.72]
[1753146120620,36.56,197.68,197.6,5.06072874]
[1753146120820,36.56,197.68,197.6,30.90339685]
[1753146121114,36.56,197.68,197.64,13.19084625]
[1753146121332,13.19084625,197.69,197.64,0.72]
[1753146121690,36.68,197.72,197.6,43.7125506]
[1753146121918,13.19084625,197.7,197.61,0.72]
[1753146122125,13.19084625,197.65,197.59,5.06091157]
[1753146122321,29.97553022,197.64,197.59,5.06091157]
[1753146122626,13.19084625,197.64,197.59,5.06091157]
[1753146122916,13.19084625,197.65,197.6,0.72]
[1753146123125,16.78468397,197.62,197.59,5.06091157]
[1753146123616,16.78468397,197.63,197.59,5.78091157]
[1753146123914,16.78468397,197.63,197.59,5.06091157]
[1753146124126,13.19084625,197.63,197.58,0.2]
[1753146124289,29.97553022,197.59,197.58,0.2]
[1753146125124,35.60651508,197.59,197.58,0.2]
[1753146125377,48.25897724,197.59,197.54,0.03]
[1753146125503,55.97553022,197.55,197.54,0.03]
[1753146125691,92.63553022,197.55,197.54,0.03]
[1753146126304,53.44468397,197.55,197.54,0.03]
[1753146126512,16.78468397,197.57,197.54,0.03]
[1753146126922,16.78468397,197.55,197.54,0.03]
[1753146127607,13.19084625,197.55,197.54,0.03]
[1753146127806,13.76084625,197.55,197.54,0.03]
[1753146128220,56.54553022,197.55,197.54,0.03]
[1753146128818,61.60753983,197.55,197.54,0.03]
[1753146129616,48.79838608,197.55,197.54,0.03]
[1753146130449,85.41838608,197.55,197.54,0.03]
[1753146131848,72.22753983,197.55,197.54,0.03]
[1753146132442,35.60753983,197.55,197.54,0.03]
[1753146132645,72.22753983,197.55,197.54,0.03]
[1753146135863,85.41838608,197.55,197.54,0.03]
[1753146136166,42.78468397,197.51,197.5,0.03]
[1753146136327,29.97553022,197.43,197.42,0.2]
[1753146136525,92.55553022,197.43,197.42,0.2]
[1753146136744,93.12553022,197.43,197.42,0.2]
[1753146137743,106.31637647,197.43,197.42,0.2]
[1753146137948,98.19061657,197.43,197.42,0.2]
[1753146138942,92.55553022,197.43,197.42,0.2]
[1753146140447,93.12553022,197.43,197.42,0.2]
[1753146140749,92.55553022,197.43,197.42,0.2]
[1753146141340,79.38468397,197.43,197.42,0.2]
[1753146141534,16.78468397,197.43,197.42,0.2]
[1753146141748,32.2474169,197.54,197.42,0.2]
[1753146141749,0.57,197.54,197.42,38.17324647]
[1753146141945,13.19084625,197.53,197.47,18.25469547]
[1753146142129,36.6,197.52,197.48,0.69]
[1753146142335,16.78468397,197.5,197.48,0.69]
[1753146142535,16.78468397,197.5,197.49,0.69]
[1753146142744,16.78468397,197.5,197.42,6.5637]
[1753146142945,16.78468397,197.48,197.45,0.69]
[1753146143259,16.78468397,197.48,197.46,0.69]
[1753146143452,16.78468397,197.48,197.47,0.69]
[1753146144041,16.78468397,197.48,197.45,18.25518261]
[1753146144359,16.78468397,197.48,197.45,18.94518261]
[1753146144554,16.78468397,197.48,197.46,13.88084625]
[1753146144555,36.6,197.48,197.46,13.88084625]
[1753146144755,16.78468397,197.47,197.43,17.72755411]
[1753146145058,16.78468397,197.47,197.46,13.19084625]
[1753146145251,16.78468397,197.47,197.46,0.69]
[1753146145557,29.97553022,197.47,197.42,0.2]
[1753146145736,16.78468397,197.45,197.43,0.69]
[1753146146637,16.78468397,197.45,197.42,5.26531228]
[1753146146949,16.78468397,197.43,197.42,0.2]
[1753146147140,29.97553022,197.43,197.42,0.2]
[1753146148554,35.04061657,197.43,197.42,0.2]
[1753146149056,35.61061657,197.43,197.42,0.2]
[1753146150242,35.04061657,197.43,197.42,0.2]
[1753146150458,16.78468397,197.43,197.42,0.89]
[1753146150756,53.46468397,197.43,197.42,0.89]
[1753146151359,53.46468397,197.43,197.42,0.2]
[1753146151563,66.65553022,197.43,197.42,0.2]
[1753146152137,71.72061657,197.43,197.42,0.2]
[1753146152338,53.46468397,197.43,197.42,0.2]
[1753146152561,66.65553022,197.43,197.42,0.2]
[1753146152761,53.46468397,197.43,197.42,0.2]
[1753146153065,66.65553022,197.43,197.42,0.2]
[1753146153465,71.72061657,197.43,197.42,0.2]
[1753146153769,72.29061657,197.43,197.42,0.2]
[1753146154266,77.9574514,197.43,197.42,0.2]
[1753146154472,28.08660515,197.43,197.42,0.2]
[1753146154650,66.65553022,197.43,197.42,0.2]
[1753146155061,71.72061657,197.43,197.42,0.2]
[1753146155464,53.46468397,197.43,197.42,0.2]
[1753146155655,66.65553022,197.43,197.42,0.2]
[1753146156542,72.29061657,197.43,197.42,0.2]
[1753146157162,71.72061657,197.43,197.42,0.2]
[1753146157770,72.29061657,197.43,197.42,0.2]
[1753146159067,12.71826877,197.5,197.42,0.2]
[1753146159269,16.78468397,197.44,197.42,0.9]
[1753146159472,53.42468397,197.44,197.42,0.2]
[1753146159657,36.64,197.44,197.43,9.56295752]
[1753146159856,36.62,197.47,197.44,6.6186]
[1753146160062,36.62,197.47,197.45,0.7]
[1753146160263,16.78468397,197.46,197.45,0.7]
[1753146160463,16.78468397,197.46,197.42,14.82828064]
[1753146160775,16.78468397,197.44,197.43,0.7]
[1753146161675,36.62,197.45,197.43,9.56295752]
[1753146161868,36.62,197.45,197.43,8.86295752]
[1753146162076,16.78468397,197.45,197.44,0.7]
[1753146162278,36.68,197.46,197.44,0.7]
[1753146162474,16.78468397,197.49,197.46,5.06431682]
[1753146162679,36.66,197.49,197.47,9.56295752]
[1753146162855,36.66,197.49,197.48,0.7]
[1753146163059,53.44468397,197.49,197.48,0.7]
[1753146164069,0.06,197.54,197.49,34.1015]
[1753146164277,13.927274,197.66,197.56,26.0]
[1753146164453,0.1,197.7,197.65,8.86295752]
[1753146164658,0.1,197.7,197.63,8.86295752]
[1753146164868,8.86295752,197.68,197.63,0.7]
[1753146165178,16.78468397,197.67,197.64,0.7]
[1753146165584,25.64764149,197.65,197.62,6.4889]
[1753146165760,16.78468397,197.62,197.57,0.7]
[1753146165965,16.78468397,197.6,197.57,0.7]
[1753146166178,16.78468397,197.6,197.58,0.7]
[1753146166375,36.64,197.62,197.54,37.34596587]
[1753146166376,16.78468397,197.58,197.54,6.9837]
[1753146166566,25.64764149,197.58,197.54,6.9837]
[1753146166771,25.64764149,197.58,197.54,6.2837]
[1753146167082,25.64764149,197.58,197.55,0.7]
[1753146167286,25.64764149,197.58,197.51,13.18473314]
[1753146167287,16.78468397,197.56,197.51,13.18473314]
[1753146167483,16.78468397,197.52,197.51,0.7]
[1753146167877,29.96941711,197.54,197.51,0.7]
[1753146168076,16.78468397,197.52,197.51,0.7]
[1753146168492,29.96941711,197.54,197.51,0.7]
[1753146168967,29.96941711,197.54,197.52,0.7]
[1753146169171,16.78468397,197.54,197.49,18.2482409]
[1753146169368,16.78468397,197.54,197.53,0.7]
[1753146169584,16.78468397,197.54,197.49,18.2482409]
[1753146169790,16.78468397,197.54,197.5,0.7]
[1753146170188,16.78468397,197.5,197.46,0.7]
[1753146170373,53.42468397,197.5,197.46,0.7]
[1753146170573,53.42468397,197.5,197.47,0.7]
[1753146170774,66.60941711,197.5,197.42,13.29431786]
[1753146170987,16.78468397,197.48,197.44,0.7]
[1753146171289,29.96941711,197.48,197.44,0.7]
[1753146171493,16.78468397,197.46,197.42,6.6226]
[1753146171704,29.96941711,197.46,197.42,6.6226]
[1753146171877,16.78468397,197.44,197.42,0.2]
[1753146172291,16.78468397,197.46,197.42,0.2]
[1753146172475,16.78468397,197.44,197.42,0.2]
[1753146172675,53.40468397,197.44,197.42,0.2]
[1753146173298,29.96941711,197.43,197.42,0.2]
[1753146174284,16.78468397,197.43,197.42,0.2]
[1753146174781,29.96941711,197.43,197.42,0.2]
[1753146175288,35.03450346,197.43,197.42,0.2]
[1753146177272,35.66450346,197.43,197.42,0.2]
[1753146177703,41.08645421,197.43,197.42,0.2]
[1753146178782,47.84977032,197.43,197.42,0.2]
[1753146179107,16.78468397,197.43,197.42,0.2]
[1753146179599,53.36468397,197.43,197.42,0.2]
[1753146179805,71.61450346,197.43,197.42,0.2]
[1753146180021,16.78468397,197.43,197.42,0.2]
[1753146180178,0.63,197.55,197.42,19.15007606]
[1753146180379,13.18473314,197.56,197.51,13.18473314]
[1753146180691,0.06,197.58,197.55,13.18473314]
[1753146180878,0.06,197.58,197.57,13.18473314]
[1753146181071,0.06,197.58,197.57,13.88473314]
[1753146181274,36.66,197.61,197.57,13.88473314]
[1753146181577,0.06,197.62,197.6,13.18473314]
[1753146181788,0.06,197.62,197.61,13.18473314]
[1753146182292,0.06,197.62,197.61,13.88473314]
[1753146182688,49.90473314,197.62,197.51,6.2728]
[1753146182900,16.78468397,197.55,197.52,0.7]
[1753146183474,13.18473314,197.55,197.52,0.7]
[1753146183785,13.18473314,197.55,197.49,13.18473314]
[1753146183786,13.18473314,197.55,197.44,6.568]
[1753146184082,29.96941711,197.53,197.48,0.7]
[1753146184290,16.78468397,197.53,197.48,0.7]
[1753146184496,29.96941711,197.53,197.49,0.7]
[1753146184691,29.96941711,197.53,197.47,13.18473314]
[1753146184889,29.96941711,197.53,197.5,0.7]
[1753146185114,16.78468397,197.53,197.51,0.7]
[1753146185320,16.78468397,197.51,197.46,0.7]
[1753146185615,16.78468397,197.49,197.46,0.7]
[1753146185908,16.78468397,197.5,197.46,0.7]
[1753146186078,29.96941711,197.5,197.44,13.18473314]
[1753146186612,16.78468397,197.5,197.45,0.7]
[1753146186802,16.78468397,197.5,197.46,0.7]
[1753146187010,16.78468397,197.5,197.47,0.7]
[1753146187315,35.03270902,197.5,197.44,13.18473314]
[1753146187489,13.18473314,197.49,197.43,13.88473314]
[1753146187688,16.78468397,197.47,197.43,13.88473314]
[1753146187909,29.96941711,197.47,197.43,0.7]
[1753146188085,16.78468397,197.47,197.43,0.7]
[1753146188796,32.00852853,197.54,197.42,13.38473314]
[1753146188797,29.96941711,197.5,197.44,0.71]
[1753146189007,16.78468397,197.47,197.45,13.18473314]
[1753146189215,16.78468397,197.47,197.46,0.71]
[1753146189794,16.78468397,197.5,197.46,13.89473314]
[1753146190091,16.78468397,197.5,197.48,13.18473314]
[1753146190293,16.78468397,197.5,197.48,0.71]
[1753146190707,16.78468397,197.5,197.49,0.71]
[1753146191198,16.78468397,197.5,197.43,43.72780224]
[1753146191199,16.78468397,197.5,197.46,13.89473314]
[1753146191591,16.78468397,197.5,197.47,0.71]
[1753146191792,16.78468397,197.5,197.47,13.89473314]
[1753146192121,16.78468397,197.5,197.48,0.71]
[1753146192602,16.78468397,197.5,197.49,0.71]
[1753146193427,16.78468397,197.5,197.47,13.18473314]
[1753146193623,16.78468397,197.5,197.48,0.71]
[1753146193918,16.78468397,197.5,197.49,0.71]
[1753146194790,16.78468397,197.5,197.47,13.18473314]
[1753146195204,16.78468397,197.5,197.47,13.89473314]
[1753146195424,16.78468397,197.5,197.48,0.71]
[1753146195595,16.78468397,197.5,197.49,0.71]
[1753146195806,36.58,197.52,197.49,0.71]
[1753146196007,0.74,197.62,197.51,13.18473314]
[1753146196199,13.18473314,197.6,197.54,13.18473314]
[1753146196405,36.58,197.61,197.55,13.18473314]
[1753146196624,16.78468397,197.6,197.55,13.18473314]
[1753146196832,21.8454502,197.6,197.55,13.89473314]
[1753146197194,30.69474867,197.6,197.55,0.71]
[1753146197428,30.69474867,197.6,197.54,8.84929847]
[1753146197628,8.84929847,197.58,197.52,9.55929847]
[1753146197805,16.78468397,197.57,197.52,9.55929847]
[1753146198333,8.84929847,197.56,197.5,8.84929847]
[1753146198698,30.69572219,197.57,197.51,8.84929847]
[1753146198906,8.84929847,197.54,197.49,0.03]
[1753146199317,13.19103078,197.54,197.49,0.03]
[1753146199828,66.53571475,197.55,197.5,0.71]
[1753146200122,29.97571475,197.53,197.49,0.03]
[1753146200299,16.78468397,197.53,197.49,0.03]
[1753146200499,16.78468397,197.53,197.5,0.71]
[1753146200716,16.78468397,197.53,197.49,0.03]
[1753146201197,35.03832156,197.53,197.49,0.03]
[1753146201504,49.75103078,197.52,197.49,0.03]
[1753146201698,36.56,197.52,197.5,0.71]
[1753146201917,16.78468397,197.51,197.49,0.03]
[1753146203028,30.65571475,197.5,197.49,0.03]
[1753146203209,17.46468397,197.5,197.49,0.03]
[1753146203406,29.97571475,197.5,197.49,0.03]
[1753146204011,16.78468397,197.5,197.49,0.03]
[1753146204218,29.97571475,197.5,197.49,0.03]
[1753146204637,16.78468397,197.5,197.49,0.03]
[1753146204845,16.78468397,197.51,197.49,13.93103078]
[1753146205056,16.78468397,197.51,197.5,0.71]
[1753146205217,16.78468397,197.51,197.49,0.03]
[1753146205422,16.78468397,197.51,197.49,0.74]
[1753146205728,16.78468397,197.51,197.5,0.71]
[1753146206122,16.78468397,197.51,197.49,0.03]
[1753146206323,16.78468397,197.51,197.5,0.71]
[1753146206518,29.97571475,197.53,197.49,0.03]
[1753146206718,0.68,197.59,197.49,0.03]
[1753146207039,16.78468397,197.54,197.5,0.71]
[1753146207645,13.19103078,197.51,197.49,0.03]
[1753146207850,66.55571475,197.5,197.49,0.03]
[1753146208214,53.36468397,197.5,197.49,0.03]
[1753146208418,66.55571475,197.5,197.49,0.03]
[1753146209537,72.29900588,197.5,197.49,0.03]
[1753146210322,71.61900588,197.5,197.49,0.03]
[1753146211546,72.29900588,197.5,197.49,0.03]
[1753146214036,72.27900588,197.5,197.49,0.03]
[1753146214343,72.27900588,197.5,197.49,1e-08]
[1753146214843,72.27900588,197.5,197.45,0.03]
[1753146214844,42.78468397,197.46,197.45,0.03]
[1753146215043,127.98003157,197.46,197.45,0.03]
[1753146215368,128.66003157,197.46,197.45,0.03]
[1753146216425,129.16003157,197.46,197.45,0.03]
[1753146216857,129.16003157,197.46,197.45,1e-08]
[1753146217054,134.63087676,197.46,197.45,1e-08]
[1753146217426,42.78468397,197.42,197.41,1e-08]
[1753146217630,98.18878217,197.42,197.41,1e-08]
[1753146217841,98.86878217,197.42,197.41,1e-08]
[1753146218750,85.67775139,197.42,197.41,1e-08]
[1753146218956,93.19571475,197.42,197.41,1e-08]
[1753146219133,93.93956343,197.42,197.41,1e-08]
[1753146219333,98.02982976,197.42,197.41,1e-08]
[1753146219540,103.70289718,197.42,197.41,1e-08]
[1753146220330,103.70289718,197.42,197.39,1e-08]
[1753146220331,22.45775139,197.41,197.39,1e-08]
[1753146220544,16.78468397,197.39,197.29,0.2]
[1753146220747,62.21422051,197.38,197.29,0.2]
[1753146220951,68.54728793,197.38,197.29,0.2]
[1753146221465,62.21422051,197.38,197.33,5.06748452]
[1753146221767,67.94058994,197.38,197.29,0.88]
[1753146222342,74.11365736,197.38,197.29,0.2]
[1753146222551,42.78468397,197.36,197.29,0.2]
[1753146222727,88.23422051,197.36,197.35,1e-08]
[1753146222932,16.78468397,197.31,197.29,0.2]
[1753146223169,62.23422051,197.3,197.29,0.2]
[1753146223468,67.98264423,197.3,197.29,0.2]
[1753146223755,58.45310769,197.3,197.29,0.2]
[1753146223934,62.25422051,197.3,197.29,0.2]
[1753146224453,67.32264423,197.3,197.29,0.2]
[1753146225834,67.98264423,197.3,197.29,0.2]
[1753146226961,73.85071165,197.3,197.29,0.2]
[1753146227460,16.78468397,197.26,197.21,0.03]
[1753146227669,26.0,197.27,197.21,0.03]
[1753146227670,51.65422051,197.22,197.21,0.03]
[1753146227840,88.23422051,197.22,197.21,0.03]
[1753146228030,88.89422051,197.22,197.21,0.03]
[1753146228339,94.76228793,197.22,197.21,0.03]
[1753146228661,68.76228793,197.22,197.21,0.03]
[1753146229243,42.78468397,197.18,197.1,0.68]
[1753146229445,16.78468397,197.13,197.11,5.07330931]
[1753146229646,53.38468397,197.13,197.12,0.68]
[1753146230764,16.78468397,197.23,197.12,9.54953654]
[1753146230965,16.78468397,197.19,197.14,8.86953654]
[1753146231270,16.78468397,197.17,197.14,0.68]
[1753146231440,16.78468397,197.15,197.14,0.68]
[1753146231768,16.78468397,197.15,197.11,8.86953654]
[1753146231933,16.78468397,197.15,197.1,17.7574835]
[1753146232137,16.78468397,197.15,197.13,8.86953654]
[1753146232343,16.78468397,197.15,197.14,0.68]
[1753146232870,16.78468397,197.17,197.14,9.54953654]
[1753146233037,16.78468397,197.17,197.15,9.54953654]
[1753146233238,16.78468397,197.18,197.16,0.68]
[1753146233541,16.78468397,197.18,197.17,0.68]
[1753146234346,16.78468397,197.23,197.14,5.07253728]
[1753146234542,25.65422051,197.21,197.17,0.68]
[1753146234877,36.62,197.2,197.17,0.68]
[1753146235043,36.62,197.2,197.18,0.68]
[1753146235362,53.40468397,197.2,197.19,0.68]
[1753146235577,62.27422051,197.2,197.15,5.07213061]
[1753146235763,25.65422051,197.16,197.12,0.68]
[1753146235947,16.78468397,197.14,197.12,0.68]
[1753146236273,16.78468397,197.14,197.13,0.68]
[1753146236646,53.42468397,197.14,197.13,0.68]
[1753146236973,53.42468397,197.14,197.13,5.7527946]
[1753146237190,16.78468397,197.14,197.13,0.68]
[1753146237347,25.65422051,197.14,197.1,0.68]
[1753146237686,16.78468397,197.12,197.11,0.68]
[1753146237840,16.78468397,197.12,197.09,14.1433165]
[1753146238573,16.78468397,197.12,197.1,9.54953654]
[1753146238797,25.65422051,197.12,197.09,5.27374781]
[1753146239073,16.78468397,197.12,197.1,0.68]
[1753146239247,16.78468397,197.12,197.11,0.68]
[1753146239666,25.65422051,197.12,197.09,0.2]
[1753146239875,25.65422051,197.1,197.09,0.2]
[1753146240487,32.17720716,197.1,197.09,0.2]
[1753146240844,37.25077387,197.1,197.09,0.2]
[1753146241043,16.78468397,197.02,196.97,0.68]
[1753146241278,16.78468397,196.97,196.94,0.68]
[1753146241563,8.86953654,196.96,196.91,42.65823938]
[1753146241782,8.86953654,196.96,196.91,5.75823938]
[1753146241981,16.78468397,196.97,196.92,0.68]
[1753146242173,36.92,196.96,196.91,5.07823938]
[1753146242367,16.78468397,196.95,196.92,0.68]
[1753146242568,36.96,196.98,196.94,8.86953654]
[1753146242761,36.96,196.98,196.91,5.07823938]
[1753146242762,36.96,196.98,196.95,0.68]
[1753146242973,16.78468397,196.95,196.91,0.68]
[1753146243172,16.78468397,196.91,196.88,5.07919061]
[1753146243470,8.86953654,196.95,196.89,9.54953654]
[1753146243680,25.65422051,196.91,196.89,0.68]
[1753146243892,16.78468397,196.89,196.84,5.08001971]
[1753146244071,16.78468397,196.84,196.79,0.68]
[1753146244278,25.65422051,196.8,196.74,0.68]
[1753146244588,16.78468397,196.77,196.74,0.68]
[1753146244796,8.86953654,196.76,196.74,0.68]
[1753146245093,71.94953654,196.75,196.67,0.68]
[1753146245314,13.30392686,196.68,196.64,0.68]
[1753146245471,16.78468397,196.67,196.56,43.24379322]
[1753146245666,16.78468397,196.67,196.65,0.68]
[1753146245865,16.78468397,196.66,196.61,0.68]
[1753146246078,16.78468397,196.72,196.65,13.30392686]
[1753146246294,16.78468397,196.76,196.66,0.68]
[1753146246786,16.78468397,196.76,196.62,0.68]
[1753146246787,13.30392686,196.7,196.62,0.68]
[1753146246969,38.58,196.7,196.63,5.08569394]
[1753146247285,16.78468397,196.69,196.64,0.68]
[1753146247486,16.78468397,196.73,196.66,26.0]
[1753146247791,16.78468397,196.73,196.67,0.68]
[1753146247998,16.78468397,196.77,196.72,13.30392686]
[1753146248178,16.78468397,196.77,196.74,13.30392686]
[1753146248384,38.8,196.81,196.76,13.30392686]
[1753146248572,38.8,196.81,196.76,0.71]
[1753146248766,16.78468397,196.8,196.76,0.71]
[1753146248975,16.78468397,196.76,196.67,5.08465958]
[1753146249289,13.30392686,196.68,196.63,5.79549293]
[1753146249591,16.78468397,196.63,196.56,0.71]
[1753146249792,0.69,196.67,196.51,0.71]
[1753146249793,16.78468397,196.57,196.51,0.71]
[1753146249965,16.78468397,196.57,196.53,0.71]
[1753146250167,52.16392686,196.58,196.48,5.79957654]
[1753146250168,16.78468397,196.53,196.48,5.79957654]
[1753146250691,16.78468397,196.53,196.48,5.08957654]
[1753146250880,0.69,196.61,196.52,13.30392686]
[1753146251192,0.69,196.61,196.5,4.58905852]
[1753146251193,16.78468397,196.61,196.58,13.30392686]
[1753146251491,13.30392686,196.59,196.53,26.0]
[1753146252081,16.78468397,196.6,196.55,13.30392686]
[1753146252270,30.08861083,196.6,196.54,0.71]
[1753146252472,16.78468397,196.6,196.56,13.30392686]
[1753146252803,16.78468397,196.6,196.57,0.71]
[1753146252973,16.78468397,196.62,196.58,5.08698748]
[1753146253173,30.08861083,196.62,196.58,5.08698748]
[1753146253374,16.78468397,196.6,196.58,5.08698748]
[1753146254075,38.92,196.65,196.58,5.08698748]
[1753146254076,13.30392686,196.62,196.58,5.08698748]
[1753146254495,26.0,196.67,196.59,0.71]
[1753146254698,16.78468397,196.66,196.59,0.71]
[1753146255000,13.30392686,196.64,196.6,5.08646998]
[1753146255598,38.92,196.67,196.61,0.71]
[1753146255899,16.78468397,196.66,196.61,0.71]
[1753146256092,30.08861083,196.66,196.61,0.71]
[1753146256280,16.78468397,196.66,196.62,0.71]
[1753146256481,16.78468397,196.66,196.63,0.71]
[1753146256891,16.78468397,196.66,196.62,5.08595259]
[1753146257078,13.30392686,196.64,196.6,5.08621947]
[1753146257284,30.08861083,196.62,196.6,5.08621947]
[1753146257480,16.78468397,196.66,196.6,5.08621947]
[1753146257691,16.78468397,196.62,196.6,5.08621947]
[1753146257996,16.78468397,196.56,196.49,5.08931752]
[1753146258196,16.78468397,196.52,196.49,5.08931752]